[Event "FIDE WCCC Open-08 2024"]
[Site "Montesilvano"]
[Date "2024.11.18"]
[Round "3.16"]
[White "Charyyev Charyhekim"]
[Black "Stankowski, Wiktor"]
[Result "0-1"]
[ECO "B07"]
[WhiteElo "1589"]
[BlackElo "1617"]
[PlyCount "64"]
[EventDate "2024.11.18"]
[EventType "swiss"]
[EventCountry "ITA"]
[TimeControl "5400+30"]

1. d4 {[%emt 0:00:02]} Nf6 {[%emt 0:00:20]} 2. Bf4 {[%emt 0:00:12]} g6 {[%emt 0:00:32]} 3. Nc3 {[%emt 0:00:07]} Bg7 {[%emt 0:00:48]} 4. e4 {[%emt 0:00:18]} d6 {[%emt 0:00:26]} 5. Qd2 {[%emt 0:00:12]} O-O {[%emt 0:01:48]} 6. O-O-O {[%emt 0:00:06]} Nbd7 {[%emt 0:03:24]} 7. e5 {[%emt 0:00:09]} Nh5 {[%emt 0:10:56]} 8. Bh6 {[%emt 0:03:55]} dxe5 {[%emt 0:05:46]} 9. dxe5 {[%emt 0:03:22]} Bxe5 {[%emt 0:08:16]} 10. g4 {[%emt 0:03:28]} Ng7 {[%emt 0:01:46]} 11. f4 {[%emt 0:00:48]} Bd6 {[%emt 0:02:08]} 12. h4 {[%emt 0:01:24]} Nf6 {[%emt 0:05:07]} 13. f5 {[%emt 0:09:31]} Nxg4 {[%emt 0:13:11]} 14. fxg6 {[%emt 0:02:34]} Nxh6 {[%emt 0:02:37]} 15. Qxh6 {[%emt 0:01:05]} fxg6 {[%emt 0:02:19]} 16. Nge2 {[%emt 0:13:35]} Rf2 {[%emt 0:09:15]} 17. Qe3 {[%emt 0:02:56]} Rf8 {[%emt 0:05:36]} 18. Kb1 {[%emt 0:03:10]} Bg4 {[%emt 0:01:51]} 19. Bg2 {[%emt 0:03:34]} c6 {[%emt 0:02:00]} 20. Qd4 {[%emt 0:04:32]} Bh5 {[%emt 0:01:29]} 21. Rd2 {[%emt 0:02:00]} Qb6 {[%emt 0:02:08]} 22. Qc4+ {[%emt 0:01:39]} Kh8 {[%emt 0:00:12]} 23. Ne4 {[%emt 0:04:25]} Be5 {[%emt 0:02:13]} 24. c3 {[%emt 0:02:51]} Qb5 {[%emt 0:03:28]} 25. Qxb5 {[%emt 0:05:36]} cxb5 {[%emt 0:00:01]} 26. Rhd1 {[%emt 0:09:13]} Nf5 {[%emt 0:02:10]} 27. Ng5 {[%emt 0:02:56]} Ne3 {[%emt 0:01:57]} 28. Ne6 {[%emt 0:07:37]} Nxd1 {[%emt 0:00:48]} 29. Nxf8 {[%emt 0:04:24]} Rxf8 {[%emt 0:00:09]} 30. Rxd1 {[%emt 0:01:05]} Bxe2 {[%emt 0:00:12]} 31. Rd7 {[%emt 0:01:20]} Bf6 {[%emt 0:01:00]} 32. Rxb7 {[%emt 0:00:40]} Bxh4 {[%emt 0:00:16]} 0-1

[Event "FIDE WCCC Open-08 2024"]
[Site "Montesilvano"]
[Date "2024.11.18"]
[Round "3.18"]
[White "Hu, Junyan"]
[Black "Xin, Andrew M."]
[Result "1-0"]
[ECO "C02"]
[WhiteElo "1924"]
[BlackElo "1546"]
[PlyCount "101"]
[EventDate "2024.11.18"]
[EventType "swiss"]
[EventCountry "ITA"]
[TimeControl "5400+30"]

1. e4 {[%emt 0:00:02]} e6 {[%emt 0:00:07]} 2. d4 {[%emt 0:00:05]} d5 {[%emt 0:00:01]} 3. e5 c5 {[%emt 0:00:23]} 4. c3 {[%emt 0:00:16]} Nc6 {[%emt 0:00:23]} 5. Nf3 {[%emt 0:00:04]} Qb6 {[%emt 0:00:50]} 6. a3 {[%emt 0:00:08]} cxd4 {[%emt 0:01:59]} 7. cxd4 {[%emt 0:00:09]} Nh6 8. Bd3 Bd7 {[%emt 0:00:39]} 9. Bc2 Rc8 10. Nc3 {[%emt 0:01:53]} g6 {[%emt 0:01:04]} 11. O-O {[%emt 0:04:11]} Nf5 {[%emt 0:00:35]} 12. Na4 {[%emt 0:00:08]} Qa5 {[%emt 0:01:02]} 13. b4 {[%emt 0:02:16]} Qc7 {[%emt 0:00:49]} 14. Nc5 {[%emt 0:01:58]} b6 {[%emt 0:00:53]} 15. Nxd7 {[%emt 0:00:08]} Qxd7 {[%emt 0:00:09]} 16. Ba4 {[%emt 0:00:11]} Qb7 {[%emt 0:01:33]} 17. Qd3 {[%emt 0:04:05]} Bg7 18. Bb5 {[%emt 0:01:40]} O-O {[%emt 0:02:37]} 19. Ba6 {[%emt 0:00:32]} Qe7 {[%emt 0:02:51]} 20. Bxc8 {[%emt 0:01:12]} Rxc8 {[%emt 0:00:26]} 21. Kh1 {[%emt 0:01:23]} f6 {[%emt 0:01:07]} 22. g4 {[%emt 0:00:34]} Nh6 {[%emt 0:01:31]} 23. exf6 {[%emt 0:00:16]} Qxf6 {[%emt 0:02:29]} 24. Bxh6 {[%emt 0:02:57]} Bxh6 {[%emt 0:00:51]} 25. g5 {[%emt 0:02:35]} Bxg5 {[%emt 0:00:37]} 26. Nxg5 {[%emt 0:00:06]} Qxg5 {[%emt 0:00:16]} 27. Qe3 {[%emt 0:00:06]} Qf5 {[%emt 0:01:05]} 28. Rac1 {[%emt 0:01:33]} Ne7 {[%emt 0:15:12]} 29. Rxc8+ {[%emt 0:00:37]} Nxc8 {[%emt 0:00:50]} 30. Re1 {[%emt 0:03:17]} Kf7 {[%emt 0:04:31]} 31. Qg3 {[%emt 0:01:47]} Ne7 {[%emt 0:01:54]} 32. Kg2 {[%emt 0:01:06]} Kf6 {[%emt 0:06:07]} 33. Re5 {[%emt 0:00:56]} Qc2 {[%emt 0:07:36]} 34. Qh4+ {[%emt 0:00:07]} Kf7 {[%emt 0:01:54]} 35. Qh5 {[%emt 1:11:42]} h6 36. Qxh6 {[%emt 0:00:00]} Kf6 {[%emt 0:00:50]} 37. Qh4+ {[%emt 0:00:00]} Kf7 {[%emt 0:00:19]} 38. Qh7+ {[%emt 0:00:00]} Kf6 {[%emt 0:00:08]} 39. Qh6 {[%emt 0:00:00]} Nf5 {[%emt 0:01:54]} 40. Qf8+ {[%emt 0:00:00]} Kg5 {[%emt 0:00:18]} 41. Qd8+ {[%emt 0:00:00]} Kf4 {[%emt 0:02:29]} 42. h4 {[%emt 0:00:00]} Ne3+ {[%emt 0:04:42]} 43. Rxe3 {[%emt 0:00:00]} Qf5 {[%emt 0:02:45]} 44. Qc7+ {[%emt 0:00:00]} Kg4 {[%emt 0:00:24]} 45. Rg3+ {[%emt 0:00:00]} Kxh4 {[%emt 0:00:21]} 46. Qh7+ {[%emt 0:00:00]} Qh5 {[%emt 0:00:09]} 47. Rh3+ {[%emt 0:00:00]} Kg4 {[%emt 0:00:08]} 48. Rxh5 {[%emt 0:00:00]} gxh5 {[%emt 0:00:13]} 49. Qg6+ {[%emt 0:00:00]} Kf4 {[%emt 0:00:07]} 50. Qf6+ {[%emt 0:00:00]} Kg4 {[%emt 0:00:14]} 51. f3# {[%emt 0:00:00]} 1-0

[Event "FIDE WCCC Open-08 2024"]
[Site "Montesilvano"]
[Date "2024.11.18"]
[Round "3.19"]
[White "Xu, Zhihan (Samuel)"]
[Black "Agar, Garig"]
[Result "1-0"]
[ECO "C02"]
[WhiteElo "1881"]
[BlackElo "1534"]
[PlyCount "199"]
[EventDate "2024.11.18"]
[EventType "swiss"]
[EventCountry "ITA"]
[TimeControl "5400+30"]

1. e4 {[%emt 0:00:00]} e6 {[%emt 0:00:15]} 2. d4 {[%emt 0:00:04]} d5 {[%emt 0:00:15]} 3. e5 {[%emt 0:00:03]} c5 {[%emt 0:00:16]} 4. c3 {[%emt 0:00:02]} Nc6 {[%emt 0:00:19]} 5. Nf3 {[%emt 0:00:03]} Qb6 {[%emt 0:00:11]} 6. a3 {[%emt 0:00:07]} Nh6 {[%emt 0:00:43]} 7. b4 {[%emt 0:00:36]} cxd4 {[%emt 0:00:21]} 8. cxd4 {[%emt 0:00:05]} Nf5 {[%emt 0:00:20]} 9. Bb2 {[%emt 0:00:15]} Bd7 {[%emt 0:00:31]} 10. Be2 Rc8 {[%emt 0:02:15]} 11. O-O {[%emt 0:19:06]} h5 {[%emt 0:02:29]} 12. g3 {[%emt 0:24:39]} Be7 {[%emt 0:01:26]} 13. h4 {[%emt 0:03:30]} a6 {[%emt 0:03:55]} 14. Re1 {[%emt 0:05:05]} Bd8 {[%emt 0:03:20]} 15. Kg2 {[%emt 0:05:20]} Qa7 {[%emt 0:01:00]} 16. Qd2 {[%emt 0:10:45]} Bb6 {[%emt 0:07:49]} 17. Rd1 {[%emt 0:00:30]} O-O {[%emt 0:00:37]} 18. a4 {[%emt 0:04:10]} g6 {[%emt 0:06:24]} 19. Bc3 {[%emt 0:03:50]} a5 {[%emt 0:01:46]} 20. b5 {[%emt 0:04:20]} Nce7 {[%emt 0:00:33]} 21. Na3 {[%emt 0:12:55]} Rc7 {[%emt 0:01:20]} 22. Bb2 {[%emt 0:01:35]} Rcc8 {[%emt 0:01:36]} 23. Qf4 {[%emt 0:01:36]} Ng7 {[%emt 0:02:25]} 24. Rd2 {[%emt 0:01:29]} Nef5 {[%emt 0:01:01]} 25. Rh1 {[%emt 0:00:35]} Bd8 {[%emt 0:01:06]} 26. g4 {[%emt 0:00:50]} hxg4 {[%emt 0:00:52]} 27. Qxg4 {[%emt 0:00:05]} Nh5 {[%emt 0:00:24]} 28. Kf1 {[%emt 0:00:55]} Nfg7 {[%emt 0:00:29]} 29. Rg1 {[%emt 0:00:36]} Be7 {[%emt 0:01:15]} 30. Bd3 {[%emt 0:00:29]} Qb6 {[%emt 0:00:55]} 31. Ng5 {[%emt 0:00:46]} Bxg5 {[%emt 0:00:55]} 32. Qxg5 {[%emt 0:00:10]} Qd8 {[%emt 0:00:11]} 33. Qg4 {[%emt 0:00:39]} Kh8 {[%emt 0:01:30]} 34. Nc2 {[%emt 0:01:10]} Nf5 {[%emt 0:01:13]} 35. Ba3 {[%emt 0:00:45]} Rg8 {[%emt 0:00:40]} 36. Rh1 {[%emt 0:00:45]} Rc3 {[%emt 0:00:29]} 37. Bb2 {[%emt 0:00:20]} Rc8 {[%emt 0:00:12]} 38. Ne1 {[%emt 0:00:21]} Nh6 {[%emt 0:00:29]} 39. Qf3 {[%emt 0:00:29]} Nf5 {[%emt 0:00:15]} 40. Bxf5 {[%emt 0:00:10]} exf5 {[%emt 0:00:11]} 41. Qxd5 {[%emt 0:00:15]} Be6 {[%emt 0:00:23]} 42. Qxd8 {[%emt 0:00:15]} Rgxd8 {[%emt 0:00:11]} 43. Rh3 {[%emt 0:00:30]} f4 {[%emt 0:00:29]} 44. Rc3 {[%emt 0:00:10]} Rxc3 {[%emt 0:00:45]} 45. Bxc3 {[%emt 0:00:03]} b6 {[%emt 0:00:17]} 46. Nd3 {[%emt 0:00:33]} Bb3 {[%emt 0:00:27]} 47. Nb2 {[%emt 0:00:24]} Ng7 {[%emt 0:00:38]} 48. Rd3 {[%emt 0:00:25]} Be6 {[%emt 0:00:38]} 49. Bd2 {[%emt 0:01:25]} Nf5 {[%emt 0:02:32]} 50. Bxf4 {[%emt 0:00:15]} Rd5 {[%emt 0:06:38]} 51. Be3 {[%emt 0:01:35]} Nxh4 {[%emt 0:00:26]} 52. Bg5 {[%emt 0:00:40]} Nf5 {[%emt 0:01:19]} 53. Bf6+ {[%emt 0:00:43]} Kg8 {[%emt 0:00:05]} 54. Rh3 {[%emt 0:00:17]} Ng7 {[%emt 0:50:29]} 55. Rh4 {[%emt 0:00:15]} Nh5 {[%emt 0:00:00]} 56. Be7 {[%emt 0:00:45]} Rd7 {[%emt 0:00:00]} 57. Bd6 {[%emt 0:00:10]} Ng7 {[%emt 0:00:00]} 58. d5 {[%emt 0:01:00]} Bxd5 {[%emt 0:00:00]} 59. Rd4 {[%emt 0:00:10]} Be6 {[%emt 0:00:00]} 60. Nc4 {[%emt 0:00:40]} Nf5 {[%emt 0:00:00]} 61. Re4 {[%emt 0:00:45]} Bxc4+ {[%emt 0:00:00]} 62. Rxc4 {[%emt 0:00:11]} Nxd6 {[%emt 0:00:00]} 63. exd6 {[%emt 0:00:46]} Rxd6 {[%emt 0:00:00]} 64. Rc6 {[%emt 0:00:19]} Rd4 {[%emt 0:00:00]} 65. Rxb6 {[%emt 0:00:23]} Rxa4 {[%emt 0:00:00]} 66. Ra6 {[%emt 0:00:36]} Kf8 {[%emt 0:00:00]} 67. Ke2 {[%emt 0:00:29]} Ra2+ {[%emt 0:00:00]} 68. Kd3 {[%emt 0:00:46]} Rxf2 {[%emt 0:07:00]} 69. Rxa5 {[%emt 0:00:03]} Rb2 {[%emt 0:00:00]} 70. Kc4 {[%emt 0:00:27]} g5 {[%emt 0:00:00]} 71. Kc5 {[%emt 0:00:23]} Rc2+ {[%emt 0:00:00]} 72. Kd6 {[%emt 0:00:08]} Rb2 {[%emt 0:00:00]} 73. Kc7 {[%emt 0:00:51]} Rc2+ {[%emt 0:00:00]} 74. Kb8 {[%emt 0:00:53]} Rb2 {[%emt 0:00:00]} 75. Ka7 {[%emt 0:00:05]} g4 {[%emt 0:00:00]} 76. b6 {[%emt 0:00:17]} g3 {[%emt 0:00:00]} 77. b7 {[%emt 0:00:40]} g2 {[%emt 0:00:00]} 78. Ra1 {[%emt 0:00:18]} g1=Q+ {[%emt 0:00:00]} 79. Rxg1 {[%emt 0:02:00]} Ra2+ {[%emt 0:05:30]} 80. Kb8 {[%emt 0:00:30]} Rc2 {[%emt 0:00:30]} 81. Re1 {[%emt 0:00:30]} Kg7 {[%emt 0:00:30]} 82. Re8 {[%emt 0:00:30]} f5 {[%emt 0:00:30]} 83. Rc8 {[%emt 0:00:30]} Re2 {[%emt 0:00:30]} 84. Kc7 {[%emt 0:00:30]} Rc2+ {[%emt 0:00:30]} 85. Kd6 {[%emt 0:00:30]} Rd2+ {[%emt 0:00:30]} 86. Ke5 {[%emt 0:00:30]} Re2+ 87. Kxf5 {[%emt 0:00:30]} Rf2+ {[%emt 0:01:00]} 88. Ke4 {[%emt 0:00:30]} Re2+ {[%emt 0:00:30]} 89. Kd4 Rd2+ {[%emt 0:00:30]} 90. Kc3 {[%emt 0:01:00]} Rd1 {[%emt 0:00:30]} 91. b8=Q {[%emt 0:00:30]} Rc1+ 92. Kd2 Rxc8 93. Qxc8 {[%emt 0:01:00]} Kf6 94. Qe8 {[%emt 0:00:30]} Kf5 95. Ke3 {[%emt 0:00:30]} Kf6 96. Ke4 {[%emt 0:00:30]} Kg5 {[%emt 0:03:00]} 97. Qf7 {[%emt 0:00:30]} Kg4 {[%emt 0:00:30]} 98. Qg6+ {[%emt 0:00:30]} Kh3 {[%emt 0:00:30]} 99. Kf3 {[%emt 0:00:30]} Kh2 {[%emt 0:00:30]} 100. Qg2# 1-0

[Event "FIDE WCCC Open-08 2024"]
[Site "Montesilvano"]
[Date "2024.11.18"]
[Round "3.20"]
[White "Lee, Yoonjae A"]
[Black "Mani, Sarbartho"]
[Result "0-1"]
[ECO "C01"]
[WhiteElo "1546"]
[BlackElo "1824"]
[PlyCount "120"]
[EventDate "2024.11.18"]
[EventType "swiss"]
[EventCountry "ITA"]
[TimeControl "5400+30"]

1. e4 {[%emt 0:00:04]} e6 {[%emt 0:00:12]} 2. d4 {[%emt 0:00:03]} d5 {[%emt 0:00:08]} 3. Bd3 {[%emt 0:00:04]} dxe4 {[%emt 0:00:11]} 4. Bxe4 {[%emt 0:00:05]} Nf6 {[%emt 0:00:13]} 5. Bf3 {[%emt 0:00:06]} c5 {[%emt 0:00:07]} 6. Ne2 {[%emt 0:00:13]} cxd4 {[%emt 0:01:01]} 7. Nxd4 {[%emt 0:01:39]} Bc5 {[%emt 0:00:12]} 8. Be3 {[%emt 0:02:41]} Nbd7 {[%emt 0:17:04]} 9. O-O {[%emt 0:05:11]} O-O {[%emt 0:00:53]} 10. Nc3 {[%emt 0:00:14]} e5 {[%emt 0:01:29]} 11. Nb3 {[%emt 0:00:08]} Bxe3 {[%emt 0:00:10]} 12. fxe3 {[%emt 0:00:08]} Qe7 {[%emt 0:00:07]} 13. e4 {[%emt 0:07:58]} Nb6 {[%emt 0:02:38]} 14. Qe2 {[%emt 0:03:42]} Be6 {[%emt 0:00:12]} 15. Qf2 {[%emt 0:02:20]} Rfc8 {[%emt 0:03:54]} 16. Rfd1 {[%emt 0:03:59]} Nc4 {[%emt 0:00:28]} 17. Rab1 {[%emt 0:00:41]} Nxb2 {[%emt 0:03:28]} 18. Rxb2 {[%emt 0:04:18]} Rxc3 {[%emt 0:00:16]} 19. Qd2 {[%emt 0:03:33]} Rac8 {[%emt 0:01:26]} 20. Qd6 {[%emt 0:02:03]} Qxd6 {[%emt 0:00:16]} 21. Rxd6 {[%emt 0:00:09]} Kf8 {[%emt 0:00:08]} 22. Rd2 {[%emt 0:01:10]} Ke7 {[%emt 0:00:14]} 23. Na1 {[%emt 0:10:38]} b6 {[%emt 0:00:23]} 24. Nb3 {[%emt 0:00:52]} Re3 {[%emt 0:00:34]} 25. Rd3 {[%emt 0:00:57]} Rxc2 {[%emt 0:00:05]} 26. Rxc2 {[%emt 0:00:25]} Rxd3 {[%emt 0:00:04]} 27. Rc7+ {[%emt 0:00:14]} Nd7 {[%emt 0:00:09]} 28. Rxa7 {[%emt 0:00:20]} Kd6 {[%emt 0:01:04]} 29. Kf2 {[%emt 0:08:46]} Nc5 {[%emt 0:04:41]} 30. Nxc5 {[%emt 0:01:12]} Kxc5 {[%emt 0:00:55]} 31. a4 {[%emt 0:01:34]} Rd7 {[%emt 0:04:42]} 32. Ra8 {[%emt 0:01:42]} Bc4 {[%emt 0:01:28]} 33. Rh8 {[%emt 0:00:54]} h6 {[%emt 0:00:22]} 34. Rh7 {[%emt 0:01:51]} f6 {[%emt 0:01:33]} 35. Rh8 {[%emt 0:00:32]} Kb4 {[%emt 0:01:11]} 36. Ra8 {[%emt 0:00:23]} Bb3 {[%emt 0:00:19]} 37. Ra6 {[%emt 0:00:43]} Rb7 {[%emt 0:00:13]} 38. Ra8 {[%emt 0:04:35]} Bxa4 {[%emt 0:00:08]} 39. Rc8 {[%emt 0:01:26]} b5 {[%emt 0:01:09]} 40. Rc1 {[%emt 0:01:21]} Rd7 {[%emt 0:04:52]} 41. Bg4 {[%emt 0:02:00]} Rd4 {[%emt 0:00:13]} 42. Bf5 {[%emt 0:00:06]} Rc4 {[%emt 0:00:10]} 43. Rb1+ {[%emt 0:00:18]} Kc5 {[%emt 0:00:09]} 44. h3 {[%emt 0:01:13]} b4 {[%emt 0:00:45]} 45. Bg4 {[%emt 0:01:04]} Rxe4 {[%emt 0:00:33]} 46. Bf3 {[%emt 0:00:10]} Rc4 {[%emt 0:00:06]} 47. Be2 {[%emt 0:01:28]} Rc2 {[%emt 0:01:49]} 48. Kf1 {[%emt 0:00:21]} Bb5 {[%emt 0:00:16]} 49. Bxb5 {[%emt 0:00:06]} Kxb5 {[%emt 0:00:08]} 50. g3 {[%emt 0:01:06]} Kc4 {[%emt 0:00:19]} 51. h4 {[%emt 0:01:20]} b3 {[%emt 0:00:21]} 52. Ke1 {[%emt 0:00:23]} b2 {[%emt 0:00:07]} 53. Kd1 {[%emt 0:00:06]} Rh2 {[%emt 0:00:08]} 54. Ke1 {[%emt 0:00:08]} Rh1+ {[%emt 0:00:03]} 55. Kd2 {[%emt 0:00:06]} Rxb1 {[%emt 0:00:04]} 56. Kc2 {[%emt 0:00:04]} e4 {[%emt 0:00:07]} 57. Kxb1 {[%emt 0:00:04]} Kb3 {[%emt 0:00:05]} 58. h5 {[%emt 0:00:05]} e3 {[%emt 0:00:04]} 59. g4 {[%emt 0:00:02]} e2 {[%emt 0:00:05]} 60. g5 {[%emt 0:00:03]} e1=R# {[%emt 0:00:07]} 0-1

[Event "FIDE WCCC Open-08 2024"]
[Site "Montesilvano"]
[Date "2024.11.18"]
[Round "3.21"]
[White "Zhanabayev, Arystan"]
[Black "Protopopescu, Luca"]
[Result "0-1"]
[ECO "B27"]
[WhiteElo "1524"]
[BlackElo "1818"]
[PlyCount "140"]
[EventDate "2024.11.18"]
[EventType "swiss"]
[EventCountry "ITA"]
[TimeControl "5400+30"]

1. e4 {[%emt 0:00:01]} c5 {[%emt 0:00:10]} 2. c3 {[%emt 0:00:05]} g6 {[%emt 0:00:36]} 3. d4 {[%emt 0:01:58]} Bg7 {[%emt 0:00:58]} 4. Nf3 {[%emt 0:01:05]} Nc6 {[%emt 0:00:47]} 5. Be3 {[%emt 0:11:09]} Qb6 {[%emt 0:01:02]} 6. b3 {[%emt 0:05:33]} cxd4 7. cxd4 {[%emt 0:03:30]} d6 {[%emt 0:04:41]} 8. h3 {[%emt 0:05:41]} Nf6 {[%emt 0:02:09]} 9. Nc3 {[%emt 0:01:20]} Qb4 {[%emt 0:01:00]} 10. Qd2 {[%emt 0:00:29]} O-O {[%emt 0:00:37]} 11. Be2 {[%emt 0:08:38]} e5 {[%emt 0:01:54]} 12. d5 {[%emt 0:05:02]} Ne7 {[%emt 1:22:36]} 13. Bd3 {[%emt 0:02:34]} Bd7 {[%emt 0:00:00]} 14. O-O {[%emt 0:01:54]} Rfc8 {[%emt 0:00:00]} 15. Rac1 {[%emt 0:02:40]} a5 {[%emt 0:00:00]} 16. Ne2 {[%emt 0:10:22]} Ne8 {[%emt 0:00:00]} 17. Qxb4 {[%emt 0:05:48]} axb4 {[%emt 0:00:00]} 18. Rxc8 {[%emt 0:00:10]} Nxc8 {[%emt 0:00:00]} 19. Nc1 {[%emt 0:01:39]} f5 {[%emt 0:00:00]} 20. Bd2 {[%emt 0:04:36]} Nf6 {[%emt 0:00:00]} 21. Re1 {[%emt 0:01:40]} fxe4 {[%emt 0:00:00]} 22. Bxe4 {[%emt 0:00:12]} Nb6 {[%emt 0:00:00]} 23. Bxb4 {[%emt 0:00:15]} Nxe4 {[%emt 0:00:00]} 24. Rxe4 {[%emt 0:00:13]} Nxd5 {[%emt 0:00:00]} 25. Bxd6 {[%emt 0:26:26]} Bf5 {[%emt 0:00:00]} 26. Rc4 {[%emt 0:00:00]} e4 {[%emt 0:00:00]} 27. Nh4 {[%emt 0:00:00]} Rd8 {[%emt 0:00:00]} 28. Bg3 {[%emt 0:00:00]} Nc3 {[%emt 0:00:00]} 29. Nxf5 {[%emt 0:00:00]} gxf5 {[%emt 0:00:00]} 30. Bf4 {[%emt 0:00:00]} h6 {[%emt 0:00:00]} 31. Kh2 {[%emt 0:00:00]} Nd5 {[%emt 0:00:00]} 32. Bd2 {[%emt 0:00:00]} Be5+ {[%emt 0:00:00]} 33. g3 {[%emt 0:00:00]} f4 {[%emt 0:00:00]} 34. Rxe4 {[%emt 0:00:00]} fxg3+ {[%emt 0:00:00]} 35. Kg2 {[%emt 0:00:00]} Bg7 {[%emt 0:00:00]} 36. fxg3 {[%emt 0:00:29]} b5 {[%emt 0:00:00]} 37. Kf3 {[%emt 0:01:31]} Rc8 {[%emt 0:00:00]} 38. Re2 {[%emt 0:00:43]} Nc3 {[%emt 0:00:00]} 39. Re1 {[%emt 0:00:52]} Nxa2 {[%emt 0:00:00]} 40. Nxa2 {[%emt 0:00:38]} Rc2 {[%emt 0:00:00]} 41. Bxh6 {[%emt 0:01:06]} Bxh6 {[%emt 0:00:00]} 42. Re2 {[%emt 0:00:07]} Rc6 {[%emt 0:00:00]} 43. g4 {[%emt 0:01:17]} Rf6+ {[%emt 0:00:00]} 44. Kg2 {[%emt 0:00:15]} Ra6 {[%emt 0:00:00]} 45. h4 {[%emt 0:00:36]} Ra3 {[%emt 0:00:00]} 46. g5 {[%emt 0:00:49]} Bg7 {[%emt 0:00:00]} 47. b4 {[%emt 0:00:31]} Rd3 {[%emt 0:00:00]} 48. Kh2 {[%emt 0:00:51]} Kf7 {[%emt 0:00:00]} 49. h5 {[%emt 0:00:48]} Rd5 {[%emt 0:00:00]} 50. Rg2 {[%emt 0:00:18]} Rd3 {[%emt 0:00:00]} 51. g6+ {[%emt 0:00:20]} Kg8 {[%emt 0:00:00]} 52. Kg1 {[%emt 0:01:20]} Rh3 {[%emt 0:00:00]} 53. Rh2 {[%emt 0:00:10]} Bd4+ {[%emt 0:00:00]} 54. Kg2 {[%emt 0:00:07]} Ra3 {[%emt 0:00:00]} 55. Kf1 {[%emt 0:00:38]} Kg7 {[%emt 0:00:00]} 56. Rd2 {[%emt 0:00:24]} Be3 {[%emt 0:00:00]} 57. Rd7+ {[%emt 0:00:08]} Kg8 {[%emt 0:00:00]} 58. Re7 {[%emt 0:01:02]} Bd2 {[%emt 0:00:00]} 59. Rb7 {[%emt 0:01:01]} Rxa2 {[%emt 0:00:00]} 60. Rxb5 {[%emt 0:00:08]} Rb2 {[%emt 0:00:00]} 61. Rb8+ {[%emt 0:00:07]} Kg7 {[%emt 0:00:00]} 62. b5 {[%emt 0:00:19]} Be3 {[%emt 0:00:00]} 63. Rb7+ {[%emt 0:00:19]} Kf6 {[%emt 0:00:00]} 64. Rf7+ {[%emt 0:01:24]} Ke6 {[%emt 0:00:00]} 65. Rf3 {[%emt 0:00:28]} Bh6 {[%emt 0:00:00]} 66. Ra3 {[%emt 0:00:54]} Rxb5 {[%emt 0:00:00]} 67. Ra6+ {[%emt 0:00:12]} Kf5 {[%emt 0:00:00]} 68. Ra7 {[%emt 0:00:39]} Kg4 {[%emt 0:00:00]} 69. Rh7 {[%emt 0:00:37]} Kf3 {[%emt 0:00:00]} 70. Rf7+ {[%emt 0:00:24]} Bf4 {[%emt 0:00:00]} 0-1

[Event "FIDE WCCC Open-08 2024"]
[Site "Montesilvano"]
[Date "2024.11.18"]
[Round "3.22"]
[White "Le, Khai"]
[Black "Rajabov, Abdurahmon"]
[Result "0-1"]
[ECO "C01"]
[WhiteElo "1808"]
[BlackElo "1515"]
[PlyCount "62"]
[EventDate "2024.11.18"]
[EventType "swiss"]
[EventCountry "ITA"]
[TimeControl "5400+30"]

1. e4 {[%emt 0:00:25]} e6 {[%emt 0:00:22]} 2. d4 {[%emt 0:01:13]} d5 {[%emt 0:00:05]} 3. Nc3 {[%emt 0:01:21]} Nf6 {[%emt 0:00:21]} 4. exd5 {[%emt 0:00:30]} exd5 {[%emt 0:00:21]} 5. Bd3 {[%emt 0:02:19]} c6 {[%emt 0:00:09]} 6. Nge2 {[%emt 0:03:04]} Bd6 {[%emt 0:00:06]} 7. Bg5 {[%emt 0:02:33]} O-O {[%emt 0:00:09]} 8. Qd2 {[%emt 0:01:51]} Bg4 {[%emt 0:00:39]} 9. O-O {[%emt 0:03:27]} Re8 {[%emt 0:00:27]} 10. f3 {[%emt 0:05:19]} Bh5 {[%emt 0:00:48]} 11. Nf4 {[%emt 0:00:55]} Qc7 {[%emt 0:02:33]} 12. Nce2 {[%emt 0:07:08]} Nbd7 {[%emt 0:00:27]} 13. g3 {[%emt 0:02:27]} c5 {[%emt 0:00:20]} 14. c3 {[%emt 0:01:04]} c4 {[%emt 0:20:06]} 15. Bf5 {[%emt 0:08:27]} h6 {[%emt 0:11:34]} 16. Bxd7 {[%emt 0:02:24]} hxg5 {[%emt 0:00:23]} 17. Bxe8 {[%emt 0:01:26]} gxf4 {[%emt 0:00:08]} 18. Ba4 {[%emt 0:00:48]} fxg3 {[%emt 0:00:28]} 19. hxg3 {[%emt 0:00:34]} Bxg3 {[%emt 0:00:31]} 20. Nxg3 {[%emt 0:06:36]} Qxg3+ {[%emt 0:00:04]} 21. Qg2 {[%emt 0:01:30]} Qh4 {[%emt 0:00:06]} 22. Rae1 {[%emt 0:01:06]} g6 {[%emt 0:00:33]} 23. Re5 {[%emt 0:06:23]} Kg7 {[%emt 0:01:35]} 24. Rf2 {[%emt 0:03:16]} Rh8 {[%emt 0:00:45]} 25. Kf1 {[%emt 0:00:53]} Qf4 {[%emt 0:06:06]} 26. Qg5 {[%emt 0:01:00]} Bxf3 {[%emt 0:00:14]} 27. Qg1 {[%emt 0:01:29]} Ne4 {[%emt 0:00:19]} 28. Rxe4 {[%emt 0:01:35]} Qxe4 {[%emt 0:00:02]} 29. Bc2 {[%emt 0:00:24]} Qe3 {[%emt 0:00:22]} 30. Rh2 {[%emt 0:03:54]} Qc1+ {[%emt 0:00:07]} 31. Kf2 {[%emt 0:00:17]} Qxc2+ {[%emt 0:00:06]} 0-1